Workbook

Sheet 시뮬레이션
A1: Kospoll Compound Interest Simulator
A2: 투자 금액 | B2: 1000000 | C2: 원 | E2: 최종 금액 | F2: 3715.64 | G2: 원 | L2: =B7+1 -> 101
A3: 상승률 | B3: 50 | C3: % | D3: (소수점 버림) | E3: 수익률 | F3: -99.63 | G3: %
A4: 하락률 | B4: 50 | C4: % | D4: (소수점 버림) | E4: 변동성 | F4: 1210462.29
A5: 상승할 확률 | B5: 50 | C5: % | D5: (소수점 버림)
A6: 하락할 확률 | B6: =100-B5 -> 50 | C6: % | D6: (소수점 버림)
A7: 투자 횟수 | B7: 100 | C7: 회

Sheet 데이터
A1: 1000000
A2: 1500000
A3: 2250000
A4: 3375000
A5: 5062500
A6: 7593750
A7: 3796875
A8: 1898437.5
A9: 2847656.25
A10: 1423828.125
A11: 711914.0625
A12: 355957.0312
A13: 533935.5469
A14: 800903.3203
A15: 400451.6602
A16: 600677.4902
A17: 300338.7451
A18: 150169.3726
A19: 75084.68628
A20: 112627.0294
A21: 168940.5441
A22: 253410.8162
A23: 380116.2243
A24: 570174.3364
A25: 855261.5047
A26: 1282892.257
A27: 641446.1285
A28: 320723.0642
A29: 160361.5321
A30: 80180.76606
A31: 120271.1491
A32: 180406.7236
A33: 90203.36182
A34: 135305.0427
A35: 202957.5641
A36: 304436.3461
A37: 152218.1731
A38: 76109.08653
A39: 38054.54327
A40: 57081.8149
A41: 28540.90745
A42: 42811.36118
A43: 64217.04176
A44: 96325.56265
A45: 144488.344
A46: 216732.516
A47: 325098.7739
A48: 162549.387
A49: 243824.0804
A50: 121912.0402
A51: 182868.0603
A52: 274302.0905
A53: 411453.1358
A54: 205726.5679
A55: 102863.2839
A56: 154294.9259
A57: 77147.46295
A58: 115721.1944
A59: 173581.7916
A60: 260372.6875
A61: 390559.0312
A62: 195279.5156
A63: 292919.2734
A64: 439378.9101
A65: 659068.3652
A66: 988602.5477
A67: 1482903.822
A68: 2224355.732
A69: 3336533.599
A70: 5004800.398
A71: 2502400.199
A72: 1251200.099
A73: 625600.0497
A74: 312800.0249
A75: 469200.0373
A76: 234600.0187
A77: 351900.028
A78: 175950.014
A79: 263925.021
A80: 131962.5105
A81: 197943.7657
A82: 98971.88287
A83: 49485.94143
A84: 74228.91215
A85: 111343.3682
A86: 167015.0523
A87: 250522.5785
A88: 125261.2893
A89: 187891.9339
A90: 281837.9008
A91: 422756.8512
A92: 211378.4256
A93: 105689.2128
A94: 52844.6064
A95: 79266.90961
A96: 39633.4548
A97: 19816.7274
A98: 9908.363701
A99: 4954.18185
A100: 2477.090925
A101: 3715.636388

Sheet Tree
AI12: =AH13*(1+$A$34) -> 28762658.88
AH13: =AG14*(1+$A$34) -> 19175105.92
AG14: =AF15*(1+$A$34) -> 12783403.95 | AI14: =AH13*(1-$A$34) -> 9587552.962
AF15: =AE16*(1+$A$34) -> 8522269.299 | AH15: =AG14*(1-$A$34) -> 6391701.974
AE16: =AD17*(1+$A$34) -> 5681512.866 | AG16: =AF15*(1-$A$34) -> 4261134.65 | AI16: =AH17*(1+$A$34) -> 3195850.987
AD17: =AC18*(1+$A$34) -> 3787675.244 | AF17: =AE16*(1-$A$34) -> 2840756.433 | AH17: =AG18*(1+$A$34) -> 2130567.325
AC18: =AB19*(1+$A$34) -> 2525116.829 | AE18: =AD17*(1-$A$34) -> 1893837.622 | AG18: =AF19*(1+$A$34) -> 1420378.217 | AI18: =AH17*(1-$A$34) -> 1065283.662
AB19: =AA20*(1+$A$34) -> 1683411.22 | AD19: =AC18*(1-$A$34) -> 1262558.415 | AF19: =AE20*(1+$A$34) -> 946918.811 | AH19: =AG18*(1-$A$34) -> 710189.1083
AA20: =Z21*(1+$A$34) -> 1122274.146 | AC20: =AB19*(1-$A$34) -> 841705.6098 | AE20: =AD21*(1+$A$34) -> 631279.2074 | AG20: =AF19*(1-$A$34) -> 473459.4055 | AI20: =AH21*(1+$A$34) -> 355094.5541
Z21: =Y22*(1+$A$34) -> 748182.7643 | AB21: =AA20*(1-$A$34) -> 561137.0732 | AD21: =AC22*(1+$A$34) -> 420852.8049 | AF21: =AE20*(1-$A$34) -> 315639.6037 | AH21: =AG22*(1+$A$34) -> 236729.7028
Y22: =X23*(1+$A$34) -> 498788.5095 | AA22: =Z21*(1-$A$34) -> 374091.3821 | AC22: =AB23*(1+$A$34) -> 280568.5366 | AE22: =AD21*(1-$A$34) -> 210426.4025 | AG22: =AF23*(1+$A$34) -> 157819.8018 | AI22: =AH21*(1-$A$34) -> 118364.8514
X23: =W24*(1+$A$34) -> 332525.673 | Z23: =Y22*(1-$A$34) -> 249394.2548 | AB23: =AA24*(1+$A$34) -> 187045.6911 | AD23: =AC22*(1-$A$34) -> 140284.2683 | AF23: =AE24*(1+$A$34) -> 105213.2012 | AH23: =AG22*(1-$A$34) -> 78909.90092
W24: =V25*(1+$A$34) -> 221683.782 | Y24: =X23*(1-$A$34) -> 166262.8365 | AA24: =Z25*(1+$A$34) -> 124697.1274 | AC24: =AB23*(1-$A$34) -> 93522.84553 | AE24: =AD25*(1+$A$34) -> 70142.13415 | AG24: =AF23*(1-$A$34) -> 52606.60061 | AI24: =AH25*(1+$A$34) -> 39454.95046
V25: =U26*(1+$A$34) -> 147789.188 | X25: =W24*(1-$A$34) -> 110841.891 | Z25: =Y26*(1+$A$34) -> 83131.41825 | AB25: =AA24*(1-$A$34) -> 62348.56369 | AD25: =AC26*(1+$A$34) -> 46761.42277 | AF25: =AE24*(1-$A$34) -> 35071.06708 | AH25: =AG26*(1+$A$34) -> 26303.30031
U26: =T27*(1+$A$34) -> 98526.12534 | W26: =V25*(1-$A$34) -> 73894.594 | Y26: =X27*(1+$A$34) -> 55420.9455 | AA26: =Z25*(1-$A$34) -> 41565.70913 | AC26: =AB27*(1+$A$34) -> 31174.28184 | AE26: =AD25*(1-$A$34) -> 23380.71138 | AG26: =AF27*(1+$A$34) -> 17535.53354 | AI26: =AH27*(1+$A$34) -> 13151.65015
T27: =S28*(1+$A$34) -> 65684.08356 | V27: =U26*(1-$A$34) -> 49263.06267 | X27: =W28*(1+$A$34) -> 36947.297 | Z27: =Y26*(1-$A$34) -> 27710.47275 | AB27: =AA28*(1+$A$34) -> 20782.85456 | AD27: =AC26*(1-$A$34) -> 15587.14092 | AF27: =AE28*(1+$A$34) -> 11690.35569 | AH27: =AG28*(1+$A$34) -> 8767.766769
S28: =R29*(1+$A$34) -> 43789.38904 | U28: =T27*(1-$A$34) -> 32842.04178 | W28: =V29*(1+$A$34) -> 24631.53133 | Y28: =X27*(1-$A$34) -> 18473.6485 | AA28: =Z29*(1+$A$34) -> 13855.23638 | AC28: =AB27*(1-$A$34) -> 10391.42728 | AE28: =AD29*(1+$A$34) -> 7793.570461 | AG28: =AF29*(1+$A$34) -> 5845.177846 | AI28: =AH29*(1+$A$34) -> 4383.883384
R29: =Q30*(1+$A$34) -> 29192.92603 | T29: =S28*(1-$A$34) -> 21894.69452 | V29: =U30*(1+$A$34) -> 16421.02089 | X29: =W28*(1-$A$34) -> 12315.76567 | Z29: =Y30*(1+$A$34) -> 9236.82425 | AB29: =AA28*(1-$A$34) -> 6927.618188 | AD29: =AC30*(1+$A$34) -> 5195.713641 | AF29: =AE30*(1+$A$34) -> 3896.785231 | AH29: =AG30*(1+$A$34) -> 2922.588923
Q30: =P31*(1+$A$34) -> 19461.95068 | S30: =R29*(1-$A$34) -> 14596.46301 | U30: =T31*(1+$A$34) -> 10947.34726 | W30: =V29*(1-$A$34) -> 8210.510445 | Y30: =X31*(1+$A$34) -> 6157.882833 | AA30: =Z29*(1-$A$34) -> 4618.412125 | AC30: =AB31*(1+$A$34) -> 3463.809094 | AE30: =AD31*(1+$A$34) -> 2597.85682 | AG30: =AF31*(1+$A$34) -> 1948.392615 | AI30: =AH31*(1+$A$34) -> 1461.294461
P31: =O32*(1+$A$34) -> 12974.63379 | R31: =Q30*(1-$A$34) -> 9730.975342 | T31: =S32*(1+$A$34) -> 7298.231506 | V31: =U30*(1-$A$34) -> 5473.67363 | X31: =W32*(1+$A$34) -> 4105.255222 | Z31: =Y30*(1-$A$34) -> 3078.941417 | AB31: =AA32*(1+$A$34) -> 2309.206063 | AD31: =AC32*(1+$A$34) -> 1731.904547 | AF31: =AE32*(1+$A$34) -> 1298.92841 | AH31: =AG32*(1+$A$34) -> 974.1963076
O32: =N33*(1+$A$34) -> 8649.755859 | Q32: =P31*(1-$A$34) -> 6487.316895 | S32: =R33*(1+$A$34) -> 4865.487671 | U32: =T31*(1-$A$34) -> 3649.115753 | W32: =V33*(1+$A$34) -> 2736.836815 | Y32: =X31*(1-$A$34) -> 2052.627611 | AA32: =Z33*(1+$A$34) -> 1539.470708 | AC32: =AB33*(1+$A$34) -> 1154.603031 | AE32: =AD33*(1+$A$34) -> 865.9522735 | AG32: =AF33*(1+$A$34) -> 649.4642051 | AI32: =AH33*(1+$A$34) -> 487.0981538
N33: =M34*(1+$A$34) -> 5766.503906 | P33: =O32*(1-$A$34) -> 4324.87793 | R33: =Q34*(1+$A$34) -> 3243.658447 | T33: =S32*(1-$A$34) -> 2432.743835 | V33: =U34*(1+$A$34) -> 1824.557877 | X33: =W32*(1-$A$34) -> 1368.418407 | Z33: =Y34*(1+$A$34) -> 1026.313806 | AB33: =AA34*(1+$A$34) -> 769.7353542 | AD33: =AC34*(1+$A$34) -> 577.3015156 | AF33: =AE34*(1+$A$34) -> 432.9761367 | AH33: =AG34*(1+$A$34) -> 324.7321025
A34: 0.5 | B34: 상승/하락률 | M34: =L35*(1+$A$34) -> 3844.335938 | O34: =N33*(1-$A$34) -> 2883.251953 | Q34: =P35*(1+$A$34) -> 2162.438965 | S34: =R33*(1-$A$34) -> 1621.829224 | U34: =T35*(1+$A$34) -> 1216.371918 | W34: =V33*(1-$A$34) -> 912.2789383 | Y34: =X35*(1+$A$34) -> 684.2092037 | AA34: =Z35*(1+$A$34) -> 513.1569028 | AC34: =AB35*(1+$A$34) -> 384.8676771 | AE34: =AD35*(1+$A$34) -> 288.6507578 | AG34: =AF35*(1+$A$34) -> 216.4880684 | AI34: =AH35*(1+$A$34) -> 162.3660513
L35: =K36*(1+$A$34) -> 2562.890625 | N35: =M34*(1-$A$34) -> 1922.167969 | P35: =O36*(1+$A$34) -> 1441.625977 | R35: =Q34*(1-$A$34) -> 1081.219482 | T35: =S36*(1+$A$34) -> 810.9146118 | V35: =U34*(1-$A$34) -> 608.1859589 | X35: =W36*(1+$A$34) -> 456.1394691 | Z35: =Y36*(1+$A$34) -> 342.1046019 | AB35: =AA36*(1+$A$34) -> 256.5784514 | AD35: =AC36*(1+$A$34) -> 192.4338385 | AF35: =AE36*(1+$A$34) -> 144.3253789 | AH35: =AG36*(1+$A$34) -> 108.2440342
K36: =J37*(1+$A$34) -> 1708.59375 | M36: =L35*(1-$A$34) -> 1281.445312 | O36: =N37*(1+$A$34) -> 961.0839844 | Q36: =P35*(1-$A$34) -> 720.8129883 | S36: =R37*(1+$A$34) -> 540.6097412 | U36: =T35*(1-$A$34) -> 405.4573059 | W36: =V37*(1+$A$34) -> 304.0929794 | Y36: =X37*(1+$A$34) -> 228.0697346 | AA36: =Z37*(1+$A$34) -> 171.0523009 | AC36: =AB37*(1+$A$34) -> 128.2892257 | AE36: =AD37*(1+$A$34) -> 96.21691927 | AG36: =AF37*(1+$A$34) -> 72.16268945 | AI36: =AH37*(1+$A$34) -> 54.12201709
J37: =I38*(1+$A$34) -> 1139.0625 | L37: =K36*(1-$A$34) -> 854.296875 | N37: =M38*(1+$A$34) -> 640.7226562 | P37: =O36*(1-$A$34) -> 480.5419922 | R37: =Q38*(1+$A$34) -> 360.4064941 | T37: =S36*(1-$A$34) -> 270.3048706 | V37: =U38*(1+$A$34) -> 202.728653 | X37: =W38*(1+$A$34) -> 152.0464897 | Z37: =Y38*(1+$A$34) -> 114.0348673 | AB37: =AA38*(1+$A$34) -> 85.52615047 | AD37: =AC38*(1+$A$34) -> 64.14461285 | AF37: =AE38*(1+$A$34) -> 48.10845964 | AH37: =AG38*(1+$A$34) -> 36.08134473
I38: =H39*(1+$A$34) -> 759.375 | K38: =J37*(1-$A$34) -> 569.53125 | M38: =L39*(1+$A$34) -> 427.1484375 | O38: =N37*(1-$A$34) -> 320.3613281 | Q38: =P39*(1+$A$34) -> 240.2709961 | S38: =R37*(1-$A$34) -> 180.2032471 | U38: =T39*(1+$A$34) -> 135.1524353 | W38: =V39*(1+$A$34) -> 101.3643265 | Y38: =X39*(1+$A$34) -> 76.02324486 | AA38: =Z39*(1+$A$34) -> 57.01743364 | AC38: =AB39*(1+$A$34) -> 42.76307523 | AE38: =AD39*(1+$A$34) -> 32.07230642 | AG38: =AF39*(1+$A$34) -> 24.05422982 | AI38: =AH39*(1+$A$34) -> 18.04067236
H39: =G40*(1+$A$34) -> 506.25 | J39: =I40*(1+$A$34) -> 379.6875 | L39: =K40*(1+$A$34) -> 284.765625 | N39: =M38*(1-$A$34) -> 213.5742188 | P39: =O40*(1+$A$34) -> 160.1806641 | R39: =Q38*(1-$A$34) -> 120.135498 | T39: =S40*(1+$A$34) -> 90.10162354 | V39: =U40*(1+$A$34) -> 67.57621765 | X39: =W40*(1+$A$34) -> 50.68216324 | Z39: =Y40*(1+$A$34) -> 38.01162243 | AB39: =AA40*(1+$A$34) -> 28.50871682 | AD39: =AC40*(1+$A$34) -> 21.38153762 | AF39: =AE40*(1+$A$34) -> 16.03615321 | AH39: =AG40*(1+$A$34) -> 12.02711491
G40: =F41*(1+A34) -> 337.5 | I40: =H41*(1+$A$34) -> 253.125 | K40: =J41*(1+$A$34) -> 189.84375 | M40: =L39*(1-$A$34) -> 142.3828125 | O40: =N41*(1+$A$34) -> 106.7871094 | Q40: =P39*(1-$A$34) -> 80.09033203 | S40: =R41*(1+$A$34) -> 60.06774902 | U40: =T41*(1+$A$34) -> 45.05081177 | W40: =V41*(1+$A$34) -> 33.78810883 | Y40: =X41*(1+$A$34) -> 25.34108162 | AA40: =Z41*(1+$A$34) -> 19.00581121 | AC40: =AB41*(1+$A$34) -> 14.25435841 | AE40: =AD41*(1+$A$34) -> 10.69076881 | AG40: =AF41*(1+$A$34) -> 8.018076606 | AI40: =AH41*(1+$A$34) -> 6.013557455
F41: =E42*(1+$A$34) -> 225 | H41: =G42*(1+$A$34) -> 168.75 | J41: =I42*(1+$A$34) -> 126.5625 | L41: =K40*(1-$A$34) -> 94.921875 | N41: =M42*(1+$A$34) -> 71.19140625 | P41: =O40*(1-$A$34) -> 53.39355469 | R41: =Q42*(1+$A$34) -> 40.04516602 | T41: =S42*(1+$A$34) -> 30.03387451 | V41: =U42*(1+$A$34) -> 22.52540588 | X41: =W42*(1+$A$34) -> 16.89405441 | Z41: =Y42*(1+$A$34) -> 12.67054081 | AB41: =AA42*(1+$A$34) -> 9.502905607 | AD41: =AC42*(1+$A$34) -> 7.127179205 | AF41: =AE42*(1+$A$34) -> 5.345384404 | AH41: =AG42*(1+$A$34) -> 4.009038303
E42: =D43*(1+A34) -> 150 | G42: =F43*(1+A34) -> 112.5 | I42: =H43*(1+$A$34) -> 84.375 | K42: =J41*(1-$A$34) -> 63.28125 | M42: =L43*(1+$A$34) -> 47.4609375 | O42: =N41*(1-$A$34) -> 35.59570312 | Q42: =P43*(1+$A$34) -> 26.69677734 | S42: =R43*(1+$A$34) -> 20.02258301 | U42: =T43*(1+$A$34) -> 15.01693726 | W42: =V43*(1+$A$34) -> 11.26270294 | Y42: =X43*(1+$A$34) -> 8.447027206 | AA42: =Z43*(1+$A$34) -> 6.335270405 | AC42: =AB43*(1+$A$34) -> 4.751452804 | AE42: =AD43*(1+$A$34) -> 3.563589603 | AG42: =AF43*(1+$A$34) -> 2.672692202 | AI42: =AH43*(1+$A$34) -> 2.004519152
D43: 100 | F43: =E42*(1-$A$34) -> 75 | H43: =G44*(1+$A$34) -> 56.25 | J43: =I44*(1+$A$34) -> 42.1875 | L43: =K44*(1+$A$34) -> 31.640625 | N43: =M42*(1-$A$34) -> 23.73046875 | P43: =O44*(1+$A$34) -> 17.79785156 | R43: =Q44*(1+$A$34) -> 13.34838867 | T43: =S44*(1+$A$34) -> 10.0112915 | V43: =U44*(1+$A$34) -> 7.508468628 | X43: =W44*(1+$A$34) -> 5.631351471 | Z43: =Y44*(1+$A$34) -> 4.223513603 | AB43: =AA44*(1+$A$34) -> 3.167635202 | AD43: =AC44*(1+$A$34) -> 2.375726402 | AF43: =AE44*(1+$A$34) -> 1.781794801 | AH43: =AG44*(1+$A$34) -> 1.336346101
E44: =D43*(1-A34) -> 50 | G44: =F43*(1-A34) -> 37.5 | I44: =H45*(1+$A$34) -> 28.125 | K44: =J45*(1+$A$34) -> 21.09375 | M44: =L43*(1-$A$34) -> 15.8203125 | O44: =N45*(1+$A$34) -> 11.86523438 | Q44: =P45*(1+$A$34) -> 8.898925781 | S44: =R45*(1+$A$34) -> 6.674194336 | U44: =T45*(1+$A$34) -> 5.005645752 | W44: =V45*(1+$A$34) -> 3.754234314 | Y44: =X45*(1+$A$34) -> 2.815675735 | AA44: =Z45*(1+$A$34) -> 2.111756802 | AC44: =AB45*(1+$A$34) -> 1.583817601 | AE44: =AD45*(1+$A$34) -> 1.187863201 | AG44: =AF45*(1+$A$34) -> 0.8908974007 | AI44: =AH45*(1+$A$34) -> 0.6681730505
F45: =E44*(1-A34) -> 25 | H45: =G46*(1+$A$34) -> 18.75 | J45: =I44*(1-$A$34) -> 14.0625 | L45: =K44*(1-$A$34) -> 10.546875 | N45: =M46*(1+$A$34) -> 7.91015625 | P45: =O46*(1+$A$34) -> 5.932617188 | R45: =Q46*(1+$A$34) -> 4.449462891 | T45: =S46*(1+$A$34) -> 3.337097168 | V45: =U46*(1+$A$34) -> 2.502822876 | X45: =W46*(1+$A$34) -> 1.877117157 | Z45: =Y46*(1+$A$34) -> 1.407837868 | AB45: =AA46*(1+$A$34) -> 1.055878401 | AD45: =AC46*(1+$A$34) -> 0.7919088006 | AF45: =AE46*(1+$A$34) -> 0.5939316005 | AH45: =AG46*(1+$A$34) -> 0.4454487003
G46: =F45*(1-A34) -> 12.5 | I46: =H47*(1+$A$34) -> 9.375 | K46: =J45*(1-$A$34) -> 7.03125 | M46: =L47*(1+$A$34) -> 5.2734375 | O46: =N47*(1+$A$34) -> 3.955078125 | Q46: =P47*(1+$A$34) -> 2.966308594 | S46: =R47*(1+$A$34) -> 2.224731445 | U46: =T47*(1+$A$34) -> 1.668548584 | W46: =V47*(1+$A$34) -> 1.251411438 | Y46: =X47*(1+$A$34) -> 0.9385585785 | AA46: =Z47*(1+$A$34) -> 0.7039189339 | AC46: =AB47*(1+$A$34) -> 0.5279392004 | AE46: =AD47*(1+$A$34) -> 0.3959544003 | AG46: =AF47*(1+$A$34) -> 0.2969658002 | AI46: =AH47*(1+$A$34) -> 0.2227243502
H47: =G46*(1-$A$34) -> 6.25 | J47: =I48*(1+$A$34) -> 4.6875 | L47: =K48*(1+$A$34) -> 3.515625 | N47: =M48*(1+$A$34) -> 2.63671875 | P47: =O48*(1+$A$34) -> 1.977539062 | R47: =Q48*(1+$A$34) -> 1.483154297 | T47: =S48*(1+$A$34) -> 1.112365723 | V47: =U48*(1+$A$34) -> 0.834274292 | X47: =W48*(1+$A$34) -> 0.625705719 | Z47: =Y48*(1+$A$34) -> 0.4692792892 | AB47: =AA48*(1+$A$34) -> 0.3519594669 | AD47: =AC48*(1+$A$34) -> 0.2639696002 | AF47: =AE48*(1+$A$34) -> 0.1979772002 | AH47: =AG48*(1+$A$34) -> 0.1484829001
I48: =H47*(1-$A$34) -> 3.125 | K48: =J49*(1+$A$34) -> 2.34375 | M48: =L49*(1+$A$34) -> 1.7578125 | O48: =N49*(1+$A$34) -> 1.318359375 | Q48: =P49*(1+$A$34) -> 0.9887695312 | S48: =R49*(1+$A$34) -> 0.7415771484 | U48: =T49*(1+$A$34) -> 0.5561828613 | W48: =V49*(1+$A$34) -> 0.417137146 | Y48: =X49*(1+$A$34) -> 0.3128528595 | AA48: =Z49*(1+$A$34) -> 0.2346396446 | AC48: =AB49*(1+$A$34) -> 0.1759797335 | AE48: =AD49*(1+$A$34) -> 0.1319848001 | AG48: =AF49*(1+$A$34) -> 0.09898860008 | AI48: =AH49*(1+$A$34) -> 0.07424145006
J49: =I48*(1-$A$34) -> 1.5625 | L49: =K50*(1+$A$34) -> 1.171875 | N49: =M50*(1+$A$34) -> 0.87890625 | P49: =O50*(1+$A$34) -> 0.6591796875 | R49: =Q50*(1+$A$34) -> 0.4943847656 | T49: =S50*(1+$A$34) -> 0.3707885742 | V49: =U50*(1+$A$34) -> 0.2780914307 | X49: =W50*(1+$A$34) -> 0.208568573 | Z49: =Y50*(1+$A$34) -> 0.1564264297 | AB49: =AA50*(1+$A$34) -> 0.1173198223 | AD49: =AC50*(1+$A$34) -> 0.08798986673 | AF49: =AE50*(1+$A$34) -> 0.06599240005 | AH49: =AG50*(1+$A$34) -> 0.04949430004
K50: =J49*(1-$A$34) -> 0.78125 | M50: =L51*(1+$A$34) -> 0.5859375 | O50: =N51*(1+$A$34) -> 0.439453125 | Q50: =P51*(1+$A$34) -> 0.3295898438 | S50: =R51*(1+$A$34) -> 0.2471923828 | U50: =T51*(1+$A$34) -> 0.1853942871 | W50: =V51*(1+$A$34) -> 0.1390457153 | Y50: =X51*(1+$A$34) -> 0.1042842865 | AA50: =Z51*(1+$A$34) -> 0.07821321487 | AC50: =AB51*(1+$A$34) -> 0.05865991116 | AE50: =AD51*(1+$A$34) -> 0.04399493337 | AG50: =AF51*(1+$A$34) -> 0.03299620003 | AI50: =AH51*(1+$A$34) -> 0.02474715002
L51: =K50*(1-$A$34) -> 0.390625 | N51: =M52*(1+$A$34) -> 0.29296875 | P51: =O52*(1+$A$34) -> 0.2197265625 | R51: =Q52*(1+$A$34) -> 0.1647949219 | T51: =S52*(1+$A$34) -> 0.1235961914 | V51: =U52*(1+$A$34) -> 0.09269714355 | X51: =W52*(1+$A$34) -> 0.06952285767 | Z51: =Y52*(1+$A$34) -> 0.05214214325 | AB51: =AA52*(1+$A$34) -> 0.03910660744 | AD51: =AC52*(1+$A$34) -> 0.02932995558 | AF51: =AE52*(1+$A$34) -> 0.02199746668 | AH51: =AG52*(1+$A$34) -> 0.01649810001
M52: =L51*(1-$A$34) -> 0.1953125 | O52: =N53*(1+$A$34) -> 0.146484375 | Q52: =P53*(1+$A$34) -> 0.1098632812 | S52: =R53*(1+$A$34) -> 0.08239746094 | U52: =T53*(1+$A$34) -> 0.0617980957 | W52: =V53*(1+$A$34) -> 0.04634857178 | Y52: =X53*(1+$A$34) -> 0.03476142883 | AA52: =Z53*(1+$A$34) -> 0.02607107162 | AC52: =AB53*(1+$A$34) -> 0.01955330372 | AE52: =AD53*(1+$A$34) -> 0.01466497779 | AG52: =AF53*(1+$A$34) -> 0.01099873334 | AI52: =AH53*(1+$A$34) -> 0.008249050006
N53: =M52*(1-$A$34) -> 0.09765625 | P53: =O54*(1+$A$34) -> 0.0732421875 | R53: =Q54*(1+$A$34) -> 0.05493164062 | T53: =S54*(1+$A$34) -> 0.04119873047 | V53: =U54*(1+$A$34) -> 0.03089904785 | X53: =W54*(1+$A$34) -> 0.02317428589 | Z53: =Y54*(1+$A$34) -> 0.01738071442 | AB53: =AA54*(1+$A$34) -> 0.01303553581 | AD53: =AC54*(1+$A$34) -> 0.009776651859 | AF53: =AE54*(1+$A$34) -> 0.007332488894 | AH53: =AG54*(1+$A$34) -> 0.005499366671
O54: =N53*(1-$A$34) -> 0.048828125 | Q54: =P55*(1+$A$34) -> 0.03662109375 | S54: =R55*(1+$A$34) -> 0.02746582031 | U54: =T55*(1+$A$34) -> 0.02059936523 | W54: =V55*(1+$A$34) -> 0.01544952393 | Y54: =X55*(1+$A$34) -> 0.01158714294 | AA54: =Z55*(1+$A$34) -> 0.008690357208 | AC54: =AB55*(1+$A$34) -> 0.006517767906 | AE54: =AD55*(1+$A$34) -> 0.00488832593 | AG54: =AF55*(1+$A$34) -> 0.003666244447 | AI54: =AH55*(1+$A$34) -> 0.002749683335
P55: =O54*(1-$A$34) -> 0.0244140625 | R55: =Q56*(1+$A$34) -> 0.01831054688 | T55: =S56*(1+$A$34) -> 0.01373291016 | V55: =U56*(1+$A$34) -> 0.01029968262 | X55: =W56*(1+$A$34) -> 0.007724761963 | Z55: =Y56*(1+$A$34) -> 0.005793571472 | AB55: =AA56*(1+$A$34) -> 0.004345178604 | AD55: =AC56*(1+$A$34) -> 0.003258883953 | AF55: =AE56*(1+$A$34) -> 0.002444162965 | AH55: =AG56*(1+$A$34) -> 0.001833122224
Q56: =P55*(1-$A$34) -> 0.01220703125 | S56: =R57*(1+$A$34) -> 0.009155273438 | U56: =T57*(1+$A$34) -> 0.006866455078 | W56: =V57*(1+$A$34) -> 0.005149841309 | Y56: =X57*(1+$A$34) -> 0.003862380981 | AA56: =Z57*(1+$A$34) -> 0.002896785736 | AC56: =AB57*(1+$A$34) -> 0.002172589302 | AE56: =AD57*(1+$A$34) -> 0.001629441977 | AG56: =AF57*(1+$A$34) -> 0.001222081482 | AI56: =AH57*(1+$A$34) -> 0.0009165611118
R57: =Q56*(1-$A$34) -> 0.006103515625 | T57: =S58*(1+$A$34) -> 0.004577636719 | V57: =U58*(1+$A$34) -> 0.003433227539 | X57: =W58*(1+$A$34) -> 0.002574920654 | Z57: =Y58*(1+$A$34) -> 0.001931190491 | AB57: =AA58*(1+$A$34) -> 0.001448392868 | AD57: =AC58*(1+$A$34) -> 0.001086294651 | AF57: =AE58*(1+$A$34) -> 0.0008147209883 | AH57: =AG58*(1+$A$34) -> 0.0006110407412
S58: =R57*(1-$A$34) -> 0.003051757812 | U58: =T59*(1+$A$34) -> 0.002288818359 | W58: =V59*(1+$A$34) -> 0.00171661377 | Y58: =X59*(1+$A$34) -> 0.001287460327 | AA58: =Z59*(1+$A$34) -> 0.0009655952454 | AC58: =AB59*(1+$A$34) -> 0.000724196434 | AE58: =AD59*(1+$A$34) -> 0.0005431473255 | AG58: =AF59*(1+$A$34) -> 0.0004073604941 | AI58: =AH59*(1+$A$34) -> 0.0003055203706
T59: =S58*(1-$A$34) -> 0.001525878906 | V59: =U60*(1+$A$34) -> 0.00114440918 | X59: =W60*(1+$A$34) -> 0.0008583068848 | Z59: =Y60*(1+$A$34) -> 0.0006437301636 | AB59: =AA60*(1+$A$34) -> 0.0004827976227 | AD59: =AC60*(1+$A$34) -> 0.000362098217 | AF59: =AE60*(1+$A$34) -> 0.0002715736628 | AH59: =AG60*(1+$A$34) -> 0.0002036802471
U60: =T59*(1-$A$34) -> 0.0007629394531 | W60: =V61*(1+$A$34) -> 0.0005722045898 | Y60: =X61*(1+$A$34) -> 0.0004291534424 | AA60: =Z61*(1+$A$34) -> 0.0003218650818 | AC60: =AB61*(1+$A$34) -> 0.0002413988113 | AE60: =AD61*(1+$A$34) -> 0.0001810491085 | AG60: =AF61*(1+$A$34) -> 0.0001357868314 | AI60: =AH61*(1+$A$34) -> 0.0001018401235
V61: =U60*(1-$A$34) -> 0.0003814697266 | X61: =W62*(1+$A$34) -> 0.0002861022949 | Z61: =Y62*(1+$A$34) -> 0.0002145767212 | AB61: =AA62*(1+$A$34) -> 0.0001609325409 | AD61: =AC62*(1+$A$34) -> 0.0001206994057 | AF61: =AE62*(1+$A$34) -> 9.052455425e-05 | AH61: =AG62*(1+$A$34) -> 6.789341569e-05
W62: =V61*(1-$A$34) -> 0.0001907348633 | Y62: =X63*(1+$A$34) -> 0.0001430511475 | AA62: =Z63*(1+$A$34) -> 0.0001072883606 | AC62: =AB63*(1+$A$34) -> 8.046627045e-05 | AE62: =AD63*(1+$A$34) -> 6.034970284e-05 | AG62: =AF63*(1+$A$34) -> 4.526227713e-05 | AI62: =AH63*(1+$A$34) -> 3.394670784e-05
X63: =W62*(1-$A$34) -> 9.536743164e-05 | Z63: =Y64*(1+$A$34) -> 7.152557373e-05 | AB63: =AA64*(1+$A$34) -> 5.36441803e-05 | AD63: =AC64*(1+$A$34) -> 4.023313522e-05 | AF63: =AE64*(1+$A$34) -> 3.017485142e-05 | AH63: =AG64*(1+$A$34) -> 2.263113856e-05
Y64: =X63*(1-$A$34) -> 4.768371582e-05 | AA64: =Z65*(1+$A$34) -> 3.576278687e-05 | AC64: =AB65*(1+$A$34) -> 2.682209015e-05 | AE64: =AD65*(1+$A$34) -> 2.011656761e-05 | AG64: =AF65*(1+$A$34) -> 1.508742571e-05 | AI64: =AH65*(1+$A$34) -> 1.131556928e-05
Z65: =Y64*(1-$A$34) -> 2.384185791e-05 | AB65: =AA66*(1+$A$34) -> 1.788139343e-05 | AD65: =AC66*(1+$A$34) -> 1.341104507e-05 | AF65: =AE66*(1+$A$34) -> 1.005828381e-05 | AH65: =AG66*(1+$A$34) -> 7.543712854e-06
AA66: =Z65*(1-$A$34) -> 1.192092896e-05 | AC66: =AB67*(1+$A$34) -> 8.940696716e-06 | AE66: =AD67*(1+$A$34) -> 6.705522537e-06 | AG66: =AF67*(1+$A$34) -> 5.029141903e-06 | AI66: =AH67*(1+$A$34) -> 3.771856427e-06
AB67: =AA66*(1-$A$34) -> 5.960464478e-06 | AD67: =AC68*(1+$A$34) -> 4.470348358e-06 | AF67: =AE68*(1+$A$34) -> 3.352761269e-06 | AH67: =AG68*(1+$A$34) -> 2.514570951e-06
AC68: =AB67*(1-$A$34) -> 2.980232239e-06 | AE68: =AD69*(1+$A$34) -> 2.235174179e-06 | AG68: =AF69*(1+$A$34) -> 1.676380634e-06 | AI68: =AH69*(1+$A$34) -> 1.257285476e-06
AD69: =AC68*(1-$A$34) -> 1.490116119e-06 | AF69: =AE70*(1+$A$34) -> 1.11758709e-06 | AH69: =AG70*(1+$A$34) -> 8.381903172e-07
AE70: =AD69*(1-$A$34) -> 7.450580597e-07 | AG70: =AF71*(1+$A$34) -> 5.587935448e-07 | AI70: =AH71*(1+$A$34) -> 4.190951586e-07
AF71: =AE70*(1-$A$34) -> 3.725290298e-07 | AH71: =AG72*(1+$A$34) -> 2.793967724e-07
AG72: =AF71*(1-$A$34) -> 1.862645149e-07 | AI72: =AH73*(1+$A$34) -> 1.396983862e-07
AH73: =AG72*(1-$A$34) -> 9.313225746e-08
AI74: =AH73*(1-$A$34) -> 4.656612873e-08
C75: n | D75: 0 | E75: 1 | F75: 2 | G75: 3 | H75: 4 | I75: 5 | J75: 6 | K75: 7 | L75: 8 | M75: 9 | N75: 10 | O75: 11 | P75: 12 | Q75: 13 | R75: 14 | S75: 15 | T75: 16 | U75: 17 | V75: 18 | W75: 19 | X75: 20 | Y75: 21 | Z75: 22 | AA75: 23 | AB75: 24 | AC75: 25 | AD75: 26 | AE75: 27 | AF75: 28 | AG75: 29 | AH75: 30 | AI75: 31
C76: 손실 | D76: =COUNTIF(D2:D74, "<100") -> 0 | E76: =COUNTIF(E2:E74, "<100") -> 1 | F76: 2 | G76: 2 | H76: 3 | I76: 4 | J76: 4 | K76: 5 | L76: 6 | M76: 6 | N76: 7 | O76: 7 | P76: 8 | Q76: 9 | R76: 9 | S76: 10 | T76: 11 | U76: 11 | V76: 12 | W76: 12 | X76: 13 | Y76: 14 | Z76: 14 | AA76: 15 | AB76: 16 | AC76: 16 | AD76: 17 | AE76: 18 | AF76: 18 | AG76: 19 | AH76: 19 | AI76: 20
C77: 전체 | D77: =COUNT(D1:D74) -> 1 | E77: =COUNT(E1:E74) -> 2 | F77: 3 | G77: 4 | H77: 5 | I77: 6 | J77: 7 | K77: 8 | L77: 9 | M77: 10 | N77: 11 | O77: 12 | P77: 13 | Q77: 14 | R77: 15 | S77: 16 | T77: 17 | U77: 18 | V77: 19 | W77: 20 | X77: 21 | Y77: 22 | Z77: 23 | AA77: 24 | AB77: 25 | AC77: 26 | AD77: 27 | AE77: 28 | AF77: 29 | AG77: 30 | AH77: 31 | AI77: 32
C78: 비율 | D78: =D76/D77 -> 0% | E78: =E76/E77 -> 50% | F78: 67% | G78: 50% | H78: 60% | I78: 67% | J78: 57% | K78: 63% | L78: 67% | M78: 60% | N78: 64% | O78: 58% | P78: 62% | Q78: 64% | R78: 60% | S78: 63% | T78: 65% | U78: 61% | V78: 63% | W78: 60% | X78: 62% | Y78: 64% | Z78: 61% | AA78: 63% | AB78: 64% | AC78: 62% | AD78: 63% | AE78: 64% | AF78: 62% | AG78: 63% | AH78: 61% | AI78: 63%
